lending/lending_fUSD_20240711
["ID","MTS","AMOUNT","RATE_DAILY","PERIOD"]
[331732307,1720711846022,-794.55428864,0.00013574,2]
[331732309,1720711846034,-202.04601404,0.00013574,2]
[331732311,1720711846044,-75.65398596,0.00014,2]
[331732316,1720711846075,-984.32007424,0.00014,2]
[331732321,1720711846388,-10396.71733938,0.00014,2]
[331732338,1720712193192,955.96739537,0.00027,120]
[331732341,1720712359867,454.57,0.0001074,2]
[331732342,1720712397644,1866.16570766,0.00011199,2]
[331732346,1720712530555,2725.38321287,0.00011199,2]
[331732347,1720712580728,227.30730583,0.00011199,2]
[331732348,1720712601959,4626.76923557,0.00011199,2]
[331732351,1720712641889,642.49064778,0.00011199,2]
[331732352,1720712653290,277.37477835,0.00011199,2]
[331732353,1720712664611,155.0,0.00011199,2]
[331732354,1720712668908,290.46265469,0.00011199,2]
[331732357,1720712696498,155.0,0.00011199,2]
[331732360,1720712798714,1014.63381541,0.00011199,2]
[331732361,1720712826144,255.03,0.00011199,2]
[331732363,1720712863161,1342.48292623,0.00011199,2]
[331732365,1720712871675,396.02716431,0.00011199,2]
[331732366,1720712874411,222.22403384,0.00011199,2]
[331732367,1720712875325,5602.87066756,0.00011199,2]
[331732369,1720712889223,9404.02500498,0.00011199,2]
[331732370,1720712892319,-1222.0,0.00011872,2]
[331732372,1720712892349,-585.0,0.00011873,2]
[331732373,1720712892378,-1516.36935134,0.00011882,2]
[331732374,1720712903268,3071.57439988,0.00011199,2]
[331732375,1720712906085,163.90445823,0.00011199,2]
[331732376,1720712940999,458.45,0.00010827,2]
[331732377,1720712942280,3712.1900595,0.00011199,2]
[331732389,1720713033313,-227.30730583,0.00012273,2]
[331732390,1720713033322,-235.51428385,0.00012273,2]
[331732391,1720713033332,-155.0,0.00012314,2]
[331732392,1720713033341,-180.2,0.00012605,2]
[331732393,1720713033351,-250.0,0.00012606,2]
[331732394,1720713033361,-279.0,0.00012618,2]
[331732395,1720713033370,-300.0,0.00012618,2]
[331732396,1720713033379,-1247.97841032,0.00012619,2]
[331732397,1720713033457,-313.57105066,0.00012619,2]
[331732398,1720713033468,-9517.28183704,0.00012619,2]
[331732399,1720713033478,-15203.61,0.00012619,2]
[331732400,1720713033487,-3671.83,0.00012619,2]
[331732401,1720713033496,-2019.31,0.00012619,2]
[331732402,1720713033506,-150.0,0.0001264,2]
[331732403,1720713033516,-12847.37,0.00012641,2]
[331732404,1720713033526,-150.0,0.00012641,2]
[331732405,1720713033535,-250.0,0.00012646,2]
[331732406,1720713033545,-219.8,0.00012975,2]
[331732407,1720713033555,-1250.0,0.00013,2]
[331732408,1720713033568,-1000.0,0.0001304,2]
[331732409,1720713033578,-458.45,0.00013091,2]
[331732410,1720713033588,-439.4,0.00013241,2]
[331732411,1720713033598,-1014.63381541,0.00013472,2]
[331732412,1720713033613,-2376.26220892,0.00013516,2]
[331732413,1720713033623,-3074.42673232,0.00013574,2]
[331732414,1720713033633,-38790.16749631,0.00013574,2]
[331732415,1720713033662,-155.51811222,0.00012314,2]
[331732416,1720713033672,-2721.88196778,0.00013574,2]
[331732417,1720713033684,-545.15058203,0.00013574,2]
[331732418,1720713033697,-2262.64404354,0.00013574,2]
[331732419,1720713033707,-155.13954738,0.00013574,2]
[331732420,1720713033717,-748.67,0.00013699,2]
[331732421,1720713033726,-667.72826173,0.00013736,2]
[331732422,1720713033738,-89.12402385,0.00013736,2]
[331732423,1720713033747,-296.86550249,0.00013759,2]
[331732424,1720713033759,-437.4369752,0.00013759,2]
[331732426,1720713033771,-337.63959727,0.00013759,2]
[331732428,1720713033781,-959.3418612,0.00013759,2]
[331732438,1720713038300,-1261.86348953,0.00013128,2]
[331732439,1720713038309,-112.60021376,0.00013759,2]
[331732440,1720713038322,-500.0,0.00013794,2]
[331732441,1720713038331,-316.0773283,0.00013802,2]
[331732442,1720713038340,-500.0,0.00013803,2]
[331732443,1720713038349,-500.0,0.00013812,2]
[331732444,1720713038359,-1023.0,0.00013813,2]
[331732445,1720713038368,-500.0,0.00013821,2]
[331732446,1720713038378,-500.0,0.0001383,2]
[331732447,1720713038387,-500.0,0.00013838,2]
[331732448,1720713038396,-420.0,0.00013843,2]
[331732449,1720713038406,-500.0,0.00013847,2]
[331732450,1720713038415,-500.0,0.00013856,2]
[331732451,1720713038424,-500.0,0.00013865,2]
[331732452,1720713038433,-500.0,0.00013874,2]
[331732453,1720713038443,-500.0,0.00013882,2]
[331732454,1720713038452,-500.0,0.00013887,2]
[331732455,1720713038461,-200.0,0.00013887,2]
[331732456,1720713038471,-500.0,0.00013891,2]
[331732457,1720713038480,-867.196,0.00013899,2]
[331732458,1720713038489,-37691.2796,0.00013899,2]
[331732459,1720713038499,-1444.3966819,0.00013899,2]
[331732460,1720713038508,-321.06886542,0.00013899,2]
[331732461,1720713038517,-1444.3966819,0.00013899,2]
[331732462,1720713038526,-6087.7827392,0.000139,2]
[331732463,1720713038544,-3912.2172608,0.000139,2]
[331732464,1720713038554,-166.36142617,0.000139,2]
[331732465,1720713038566,-500.0,0.000139,2]
[331732466,1720713038575,-980.71475154,0.000139,2]
[331732467,1720713038584,-1023.0,0.00013955,2]
[331732468,1720713038594,-155.55648539,0.00013989,2]
[331732469,1720713038604,-366.3103729,0.0001399,2]
[331732470,1720713038616,-366.3103729,0.0001399,2]
[331732471,1720713038626,-366.3103729,0.0001399,2]
[331732472,1720713038636,-366.3103729,0.0001399,2]
[331732473,1720713038646,-366.3103729,0.0001399,2]
[331732474,1720713038656,-600.7143167,0.00013993,2]
[331732475,1720713038666,-366.3103729,0.00013993,2]
[331732476,1720713038675,-500.34407798,0.00013998,2]
[331732477,1720713038684,-720.28,0.00013998,2]
[331732478,1720713038694,-629.19,0.00013998,2]
[331732479,1720713038704,-640.12,0.00013998,2]
[331732480,1720713038713,-713.05,0.00013998,2]
[331732481,1720713038722,-754.82,0.00013998,2]
[331732483,1720713038732,-813.02,0.00013998,2]
[331732485,1720713038742,-558.81,0.00013998,2]
[331732487,1720713038751,-839.35,0.00013998,2]
[331732489,1720713038760,-501.39260358,0.00013998,2]
[331732491,1720713038770,-501.38553493,0.00013998,2]
[331732493,1720713038780,-501.50995285,0.00013998,2]
[331732495,1720713038789,-356.94328676,0.00013998,2]
[331732497,1720713038802,-143.05671324,0.00013998,2]
[331732499,1720713038811,-710.27,0.00013998,2]
[331732501,1720713038823,-501.47414864,0.00013998,2]
[331732503,1720713038833,-500.0,0.00013998,2]
[331732504,1720713038842,-726.29,0.00013998,2]
[331732505,1720713038851,-501.25591638,0.00013998,2]
[331732506,1720713038861,-500.0,0.00013998,2]
[331732507,1720713038870,-501.04327416,0.00013998,2]
[331732508,1720713038879,-500.0,0.00013998,2]
[331732509,1720713038888,-182.26314955,0.00013998,2]
[331732510,1720713038898,-679.18,0.00013998,2]
[331732511,1720713038907,-880.77,0.00013998,2]
[331732512,1720713038916,-558.41633808,0.00013998,2]
[331732513,1720713038926,-600.95,0.00013998,2]
[331732514,1720713038935,-529.63,0.00013998,2]
[331732516,1720713038945,-823.7,0.00013998,2]
[331732518,1720713038954,-648.11,0.00013998,2]
[331732520,1720713038963,-66.74545595,0.00013998,2]
[331732522,1720713038975,-590.79454405,0.00013998,2]
[331732524,1720713038984,-500.0,0.00013998,2]
[331732525,1720713038993,-326.73168692,0.00013998,2]
[331732527,1720713039003,-920.33,0.00013998,2]
[331732529,1720713039012,-500.0,0.00013998,2]
[331732531,1720713039021,-564.33211056,0.00013998,2]
[331732533,1720713039031,-500.73902762,0.00013998,2]
[331732535,1720713039040,-500.0,0.00013998,2]
[331732537,1720713039050,-676.64,0.00013998,2]
[331732539,1720713039061,-658.73,0.00013998,2]
[331732541,1720713039073,-833.52,0.00013998,2]
[331732542,1720713039082,-728.14,0.00013998,2]
[331732544,1720713039091,-671.78,0.00013998,2]
[331732546,1720713039102,-838.6,0.00013998,2]
[331732548,1720713039111,-273.95263135,0.00013998,2]
[331732550,1720713039123,-793.07736865,0.00013998,2]
[331732551,1720713039132,-705.46,0.00013998,2]
[331732552,1720713039141,-761.75,0.00013998,2]
[331732553,1720713039150,-1019.73,0.00013998,2]
[331732554,1720713039160,-780.23,0.00013998,2]
[331732555,1720713039169,-500.0,0.00013998,2]
[331732556,1720713039178,-669.6,0.00013998,2]
[331732557,1720713039187,-895.7,0.00013998,2]
[331732558,1720713039197,-500.0,0.00013998,2]
[331732559,1720713039206,-500.0,0.00013998,2]
[331732560,1720713039216,-500.0,0.00013998,2]
[331732561,1720713039225,-502.77518174,0.00013998,2]
[331732562,1720713039235,-500.0,0.00013998,2]
[331732563,1720713039244,-740.21,0.00013998,2]
[331732564,1720713039253,-737.14,0.00013998,2]
[331732565,1720713039263,-956.68,0.00013998,2]
[331732566,1720713039271,-500.0,0.00013998,2]
[331732567,1720713039280,-501.50668686,0.00013998,2]
[331732568,1720713039290,-503.42711571,0.00013998,2]
[331732569,1720713039299,-926.41,0.00013998,2]
[331732570,1720713039309,-230.53864704,0.00013998,2]
[331732571,1720713039323,-271.46326503,0.00013998,2]
[331732572,1720713039331,-503.54120696,0.00013998,2]
[331732573,1720713039341,-609.74552801,0.00013998,2]
[331732574,1720713039352,-241.80447199,0.00013998,2]
[331732575,1720713039361,-500.0,0.00013998,2]
[331732576,1720713039370,-685.82,0.00013998,2]
[331732577,1720713039380,-942.69,0.00013998,2]
[331732578,1720713039388,-612.48788194,0.00013998,2]
[331732579,1720713039398,-500.0,0.00013998,2]
[331732580,1720713039407,-600.91297357,0.00013998,2]
[331732581,1720713039417,-500.0,0.00013998,2]
[331732582,1720713039426,-500.0,0.00013998,2]
[331732583,1720713039435,-527.96605686,0.00013998,2]
[331732584,1720713039444,-303.81861564,0.00013998,2]
[331732585,1720713039456,-389.23138436,0.00013998,2]
[331732586,1720713039465,-234.93,0.00013998,7]
[331732587,1720713039474,-437.87018301,0.00013998,2]
[331732588,1720713039484,-585.42492761,0.00013998,2]
[331732589,1720713039493,-567.27543149,0.00013998,2]
[331732590,1720713039502,-500.0,0.00013998,2]
[331732591,1720713039511,-500.0,0.00013998,2]
[331732592,1720713039521,-493.61764614,0.00013999,2]
[331732593,1720713039531,-15073.89964109,0.00013999,2]
[331732594,1720713039551,-560.5437465,0.00013998,2]
[331732595,1720713039560,-313.33855816,0.00013999,2]
[331732596,1720713039576,-428.61941707,0.00013999,2]
[331732597,1720713039587,-310.24010705,0.00013999,2]
[331732598,1720713039598,-25922.71608381,0.00013999,2]
[331732603,1720713040145,-500.0,0.00013998,2]
[331732604,1720713040156,-114591.99999996,0.00013999,2]
[331732605,1720713040167,-415.87000001,0.00013999,2]
[331732606,1720713040178,-469.26882658,0.00013999,2]
[331732607,1720713040189,-558.3959593,0.00013999,2]
[331732608,1720713040413,-627.83,0.00013999,2]
[331732609,1720713040480,-5754.4,0.00013999,2]
[331732610,1720713040605,-312.1,0.00013999,2]
[331732611,1720713040620,-300897.92516301,0.00013999,2]
[331732614,1720713040803,-584.47445918,0.00013999,2]
[331732645,1720713043854,-1077.62733686,0.00013258,2]
[331732647,1720713043864,-1966.17878305,0.00013999,2]
[331732649,1720713043876,-116071.45253245,0.00013999,2]
[331732652,1720713043894,-312.14909766,0.00013999,2]
[331732655,1720713043909,-712.04599,0.00013999,2]
[331732678,1720713046192,-518.2432433,0.00013574,2]
[331732679,1720713046202,-213.90304588,0.00013989,2]
[331732680,1720713046211,-659.24371079,0.00013999,2]
[331732681,1720713046222,-1049.19224205,0.00013999,2]
[331732682,1720713046233,-11000.0,0.00013999,2]
[331732683,1720713046253,-2123.09548119,0.00013999,2]
[331732684,1720713046374,-57834.68000001,0.00013999,2]
[331732685,1720713046386,-2377.93226991,0.00013999,2]
[331732686,1720713046432,-769.02819339,0.00013999,2]
[331732687,1720713046508,-3839.7995519,0.00013999,2]
[331732688,1720713046529,-5751.00000001,0.00013999,2]
[331732691,1720713120193,500.0,0.0001126,2]
[331732692,1720713137597,1038.51237865,0.00011199,2]
[331732693,1720713141541,2413.21,0.00027,120]
[331732694,1720713207990,358.77052469,0.00011199,2]
[331732695,1720713208013,8886.11713373,0.00011199,2]
[331732697,1720713257572,1368.16531357,0.00011199,2]
[331732698,1720713292180,292.45714013,0.00011199,2]
[331732699,1720713327134,1392.67864661,0.00011199,2]
[331732701,1720713373286,756.85228558,0.00011199,2]
[331732702,1720713382735,552.51494431,0.00011199,2]
[331732703,1720713391371,2801.83425022,0.00011199,2]
[331732704,1720713401126,5524.74150994,0.00011199,2]
[331732707,1720713479288,464.19,0.00010807,2]
[331732709,1720713485587,1447.6135005,0.00011199,2]
[331732711,1720713519189,300.0,0.00011199,2]
[331732712,1720713536959,1197.27370131,0.00011199,2]
[331732713,1720713539726,553.19201684,0.00011199,2]
[331732714,1720713540547,955.73097325,0.00011199,2]
[331732715,1720713560397,163.85990627,0.00011199,2]
[331732716,1720713585955,1135.76118208,0.00011199,2]
[331732717,1720713589491,2445.6128013,0.00011199,2]
[331732718,1720713592676,167.47,0.00010129,2]
[331732719,1720713632375,150.0,0.00025673,120]
[331732720,1720713642716,1500.0,0.00011199,2]
[331732721,1720713658683,2200.57256464,0.00011199,2]
[331732722,1720713659557,5279.42605703,0.00011199,2]
[331732723,1720713659580,15723.26557039,0.00011199,2]
[331732725,1720713690903,150.0,0.00020675,120]
[331732727,1720713702370,1649.01568666,0.00011199,2]
[331732728,1720713702896,650.65547744,0.00011199,2]
[331732729,1720713719937,627.52720199,0.00011199,2]
[331732730,1720713746737,553.19201684,0.00011199,2]
[331732734,1720713764328,296.30088508,0.00011199,2]
[331732735,1720713765218,626.36373021,0.00011199,2]
[331732738,1720713790881,651.75967107,0.00011199,2]
[331732739,1720713795611,626.36373021,0.00011199,2]
[331732743,1720713822055,322.6702118,0.00011199,2]
[331732746,1720713849296,165.67879639,0.00011199,2]
[331732747,1720713850927,155.30947103,0.00011199,2]
[331732750,1720713870807,150.0,0.00018584,120]
[331732752,1720713875963,789.37066542,0.00011199,2]
[331732753,1720713886742,254.18722909,0.00011199,2]
[331732754,1720713892763,155.14898173,0.00011199,2]
[331732755,1720713896756,210.40265388,0.00011199,2]
[331732757,1720713905972,789.37066542,0.00011199,2]
[331732758,1720713911653,308.31366619,0.00011199,2]
[331732760,1720713932223,150.0,0.00024643,120]
[331732761,1720713949355,10515.60566167,0.00011199,2]
[331732762,1720713953836,300.0,0.00011199,2]
[331732763,1720713986518,155.30247153,0.00011199,2]
[331732764,1720713990824,150.0,0.000269,120]
[331732765,1720713991450,169.57789502,0.00011199,2]
[331732766,1720714008486,465.74,0.00010681,2]
[331732767,1720714034723,296.13063147,0.00011199,2]
[331732768,1720714042044,1787.47527683,0.00011199,2]
[331732769,1720714051150,150.0,0.00020055,120]
[331732774,1720714111413,206.40300481,0.00011199,2]
[331732775,1720714122913,155.07478813,0.00011199,2]
[331732779,1720714187868,193.62934922,0.00011199,2]
[331732780,1720714190268,-500.0,0.00012082,2]
[331732781,1720714190296,-2000.0,0.00012102,2]
[331732782,1720714190325,-627.52720199,0.00012302,2]
[331732783,1720714190354,-282.582379,0.00012302,2]
[331732784,1720714190382,-279.39969037,0.00012314,2]
[331732785,1720714190411,-164.45413991,0.00012314,2]
[331732786,1720714191241,483.3927836,0.00011199,2]
[331732788,1720714231018,150.0,0.00025395,120]
[331732789,1720714231741,500.0,0.0001126,2]
[331732814,1720714232403,-45.94851397,0.00012314,2]
[331732815,1720714232412,-210.40265388,0.00012314,2]
[331732816,1720714232422,-141.4695942,0.00012314,2]
[331732817,1720714232433,-13.62591136,0.00012314,2]
[331732818,1720714232443,-257.43037566,0.00012314,2]
[331732820,1720714232454,-47.47778368,0.00012314,2]
[331732822,1720714232462,-155.80827537,0.00012314,2]
[331732824,1720714232472,-77.72038031,0.00012566,2]
[331732825,1720714232575,-172.27961969,0.00012566,2]
[331732826,1720714232587,-175.84,0.00012566,2]
[331732827,1720714232595,-250.0,0.0001257,2]
[331732828,1720714232604,-2591.23038031,0.00012575,2]
[331732829,1720714232615,-270.26587227,0.00012575,2]
[331732830,1720714232627,-270.24374742,0.00012575,2]
[331732831,1720714232636,-200.0,0.00012578,2]
[331732832,1720714232646,-859.04028031,0.00012592,2]
[331732833,1720714232657,-140.95971969,0.00012592,2]
[331732834,1720714232667,-179.748894,0.000126,2]
[331732835,1720714232676,-165.52,0.0001269,2]
[331732837,1720714232685,-200.0,0.00012761,2]
[331732839,1720714232694,-165.52,0.00012785,2]
[331732841,1720714232703,-179.748894,0.0001281,2]
[331732843,1720714232713,-165.52,0.00012879,2]
[331732845,1720714232722,-465.74,0.00012945,2]
[331732847,1720714232731,-165.52,0.00012973,2]
[331732849,1720714232741,-1250.0,0.00013,2]
[331732850,1720714232750,-179.748894,0.0001302,2]
[331732851,1720714232759,-167.56,0.00013059,2]
[331732852,1720714232768,-165.52,0.00013068,2]
[331732853,1720714232782,-300.0,0.00013127,2]
[331732854,1720714232791,-266.94758565,0.00013128,2]
[331732855,1720714232800,-414.49823808,0.00013128,2]
[331732856,1720714232809,-165.52,0.00013162,2]
[331732857,1720714232819,-179.748894,0.0001323,2]
[331732858,1720714232828,-165.52,0.00013257,2]
[331732859,1720714232837,-214.082466,0.00013331,2]
[331732860,1720714232846,-165.52,0.00013351,2]
[331732861,1720714232856,-152.0,0.00013421,3]
[331732862,1720714232866,-150.0,0.00013448,2]
[331732863,1720714232875,-1235.05641458,0.00013448,2]
[331732864,1720714232887,-3000.0,0.00013448,2]
[331732865,1720714232898,-10048.94358542,0.00013448,2]
[331732866,1720714232908,-891.83072894,0.00013574,2]
[331732867,1720714232917,-598.93,0.00013699,2]
[331732868,1720714232926,-152.0,0.00013702,4]
[331732869,1720714232935,-500.0,0.00013715,2]
[331732870,1720714232945,-500.0,0.00013724,2]
[331732871,1720714232957,-500.0,0.00013733,2]
[331732872,1720714232967,-1265.84016916,0.00013736,2]
[331732873,1720714232977,-500.0,0.00013742,2]
[331732874,1720714232987,-500.0,0.0001375,2]
[331732875,1720714232996,-500.0,0.00013759,2]
[331732876,1720714233005,-500.0,0.00013768,2]
[331732877,1720714233014,-446.168,0.00013771,2]
[331732878,1720714233027,-500.0,0.00013777,2]
[331732879,1720714233038,-500.0,0.00013786,2]
[331732880,1720714233048,-209.75934926,0.0001379,2]
[331732881,1720714233059,-1000.0,0.00013813,2]
[331732882,1720714233069,-316.0773283,0.00013849,2]
[331732883,1720714233078,-2870.79811,0.0001388,2]
[331732884,1720714233088,-200.0,0.00013887,2]
[331732885,1720714233097,-1682.64648505,0.0001389,2]
[331732886,1720714233107,-384.40254923,0.00013899,2]
[331732887,1720714233121,-107.60045077,0.00013899,2]
[331732888,1720714233131,-479.95893525,0.00013899,2]
[331732889,1720714233141,-277.75678527,0.000139,2]
[331732890,1720714233153,-7604.61190373,0.000139,2]
[331732891,1720714233163,-865.3161,0.000139,2]
[331732892,1720714233172,-2500.0,0.000139,2]
[331732893,1720714233182,-1512.48173001,0.000139,2]
[331732894,1720714233196,-420.98804803,0.000139,2]
[331732933,1720714238379,-500.0,0.00012082,2]
[331732935,1720714238389,-44.57763909,0.00012904,2]
[331732937,1720714238400,-350.15917573,0.00012904,2]
[331732938,1720714238412,-105.26318518,0.00012904,2]
[331732939,1720714238421,-627.52720199,0.00013574,2]
[331732940,1720714238431,-219.78515283,0.00013726,2]
[331732941,1720714238443,-280.21484717,0.00013726,2]
[331732942,1720714238452,-339.78515283,0.000139,2]
[331732943,1720714238464,-275.96458678,0.000139,2]
[331732944,1720714238475,-613.82498429,0.000139,2]
[331732945,1720714238491,-328.92787868,0.000139,2]
[331732946,1720714238502,-3325.0,0.000139,2]
[331732947,1720714238514,-955.27057878,0.000139,2]
[331732948,1720714238594,-1235.47644,0.000139,2]
[331732949,1720714238649,-5089.65075638,0.000139,2]
[331732975,1720714240343,-907.98422226,0.000139,2]
[331732977,1720714240353,-8066.53022196,0.000139,2]
[331732979,1720714240362,-517.02816505,0.000139,2]
[331732981,1720714240374,-762.63973644,0.000139,2]
[331732983,1720714240383,-968.20622356,0.000139,2]
[331732984,1720714240449,-3022.97824322,0.000139,2]
[331732985,1720714240458,-1865.0,0.000139,2]
[331732986,1720714240468,-10693.99130553,0.000139,2]
[331732987,1720714240477,-321.06886542,0.000139,2]
[331732988,1720714240487,-1391.41021387,0.000139,2]
[331732989,1720714240497,-2870.7981,0.0001395,2]
[331732990,1720714240506,-1000.0,0.00013955,2]
[331732991,1720714240520,-594.346183,0.00013973,2]
[331732992,1720714240529,-152.0,0.00013983,5]
[331732993,1720714240539,-4615.70000004,0.00013997,2]
[331732994,1720714240548,-680.68,0.00013998,2]
[331732995,1720714240558,-500.0,0.00013998,2]
[331732996,1720714240567,-844.07,0.00013998,2]
[331732997,1720714240577,-621.1,0.00013998,2]
[331732998,1720714240586,-500.0,0.00013998,2]
[331732999,1720714240596,-798.79,0.00013998,2]
[331733000,1720714240606,-650.88,0.00013998,2]
[331733001,1720714240615,-1022.57,0.00013998,2]
[331733002,1720714240625,-631.28,0.00013998,2]
[331733003,1720714240635,-730.01,0.00013998,2]
[331733004,1720714240643,-697.8,0.00013998,2]
[331733005,1720714240652,-500.0,0.00013998,2]
[331733006,1720714240661,-643.79,0.00013998,2]
[331733007,1720714240671,-858.38,0.00013998,2]
[331733008,1720714240680,-747.72,0.00013998,2]
[331733009,1720714240690,-641.7,0.00013998,2]
[331733010,1720714240700,-916.82,0.00013998,2]
[331733011,1720714240709,-657.24,0.00013998,2]
[331733012,1720714240719,-23762.97943625,0.00013999,2]
[331733013,1720714240728,-300.02,0.00013999,2]
[331733014,1720714240738,-4306.60078189,0.00013999,2]
[331733015,1720714240747,-648.45,0.00013999,2]
[331733016,1720714240757,-456.5467327,0.00013999,2]
[331733017,1720714240767,-487.61186842,0.00013999,2]
[331733018,1720714240776,-803.65,0.00013999,2]
[331733019,1720714240786,-676.06,0.00013999,2]
[331733020,1720714240795,-500.0,0.00013999,2]
[331733021,1720714240805,-977.24,0.00013999,2]
[331733022,1720714240815,-502.84512715,0.00013999,2]
[331733023,1720714240825,-789.38,0.00013999,2]
[331733024,1720714240834,-500.0,0.00013999,2]
[331733026,1720714240844,-500.0,0.00013999,2]
[331733028,1720714240854,-507.56,0.00013999,2]
[331733030,1720714240864,-630.14,0.00013999,2]
[331733032,1720714240873,-706.43,0.00013999,2]
[331733034,1720714240883,-500.0,0.00013999,2]
[331733036,1720714240892,-500.0,0.00013999,2]
[331733038,1720714240902,-500.0,0.00013999,2]
[331733040,1720714240911,-581.04151402,0.00013999,2]
[331733042,1720714240921,-903.42,0.00013999,2]
[331733044,1720714240931,-1254.45,0.00013999,2]
[331733046,1720714240941,-881.98,0.00013999,2]
[331733048,1720714240954,-500.0,0.00013999,2]
[331733050,1720714240963,-664.17,0.00013999,2]
[331733052,1720714240975,-225.14,0.00013999,7]
[331733054,1720714240985,-500.0,0.00013999,2]
[331733056,1720714240994,-400.06495941,0.00013999,2]
[331733058,1720714241003,-2870.7981,0.00013999,2]
[331733060,1720714241012,-2870.7981,0.00013999,2]
[331733062,1720714241022,-500.0,0.00013999,2]
[331733063,1720714241035,-709.36,0.00013999,2]
[331733066,1720714241046,-690.26,0.00013999,2]
[331733067,1720714241055,-683.34,0.00013999,2]
[331733069,1720714241065,-816.06,0.00013999,2]
[331733072,1720714241076,-602.97,0.00013999,2]
[331733074,1720714241085,-779.14,0.00013999,2]
[331733076,1720714241095,-613.45,0.00013999,2]
[331733078,1720714241105,-500.0,0.00013999,2]
[331733079,1720714241115,-473.99012225,0.00013999,2]
[331733081,1720714241126,-500.0,0.00013999,2]
[331733083,1720714241136,-500.0,0.00013999,2]
[331733086,1720714241145,-723.37,0.00013999,2]
[331733088,1720714241155,-155.0,0.00013999,2]
[331733090,1720714241164,-535.52,0.00013999,2]
[331733092,1720714241174,-263.7800964,0.00013999,2]
[331733094,1720714241183,-500.0,0.00013999,2]
[331733096,1720714241193,-804.38,0.00013999,2]
[331733098,1720714241203,-696.03,0.00013999,2]
[331733100,1720714241213,-189.49997913,0.00013999,2]
[331733102,1720714241223,-500.0,0.00013999,2]
[331733104,1720714241232,-1019.0,0.00014,2]
[331733106,1720714241242,-37506.38902636,0.00014,2]
[331733108,1720714241254,-2013.124334,0.00014,2]
[331733113,1720714241292,-958.45418564,0.00014,2]
[331733115,1720714241303,-9210.76,0.00014,2]
[331733118,1720714241321,-16074.37724907,0.00014,2]
[331733120,1720714241332,-140942.33154287,0.00014,2]
[331733121,1720714241342,-85547.17408379,0.00014,2]
[331733122,1720714241352,-300.0495264,0.00014,2]
[331733123,1720714241367,-1361.46806576,0.00014,2]
[331733124,1720714241378,-698.50638546,0.00014,2]
[331733125,1720714241389,-9080.8951318,0.00014,2]
[331733126,1720714241400,-38037.51809323,0.00014,2]
[331733127,1720714241422,-670.3226246,0.00014,2]
[331733177,1720714243459,-2984.75,0.00014,2]
[331733192,1720714243567,-25128.06637714,0.00014,2]
[331733193,1720714243579,-37474.24448721,0.00014,2]
[331733194,1720714243591,-993.12736041,0.00014,2]
[331733195,1720714243674,-320.78196552,0.00014,2]
[331733196,1720714243686,-6034.512,0.00014,2]
[331733197,1720714243949,-500.32600203,0.00014,2]
[331733198,1720714243963,-327.12129972,0.00014,2]
[331733206,1720714244144,-5873.75463142,0.00014,2]
[331733208,1720714244157,-1438.55476464,0.00014,2]
[331733211,1720714244171,-4171.30281835,0.00014,2]
[331733213,1720714244186,-1596.30903577,0.00014,2]
[331733214,1720714244202,-25609.99941106,0.00014,2]
[331733215,1720714244213,-687.85090234,0.00014,2]
[331733257,1720714246645,-500.0,0.00013999,2]
[331733258,1720714246655,-126.86484445,0.00014,2]
[331733259,1720714246808,-1655.8078919,0.00014,2]
[331733261,1720714291381,150.0,0.00020998,120]
[331733263,1720714351008,150.0,0.00023415,120]
[331733268,1720714411209,150.0,0.00025049,120]